{"text_format":"3","workbook":"xlsx","n_sheets":1,"sheets":["Lista de Compras"],"not_rendered":{"images":1,"external_links":1,"defined_names":3},"read":"whole","date_system":"1900"}

{"sheet":"Lista de Compras","index":0,"n_rows":31,"n_cols":8,"rows_kept":31,"merged":[[1,1,1,2]]}
[null,"Lista de Compras"]
[null,"DATA"]
[null,"Comprado?","Item","Categoria","Quantidade","Preço","Preço Total Bruto","Marca/Comentários"]
[null,null,"Laranjas","Produto",null,null,{"$f":"IFERROR(SUM(ListaDeCompras[Quantidade]*ListaDeCompras[Preço]), \"\")","v":{"v":0,"d":"0.00 €"}}]
[null,null,"Maçãs","Produto",null,null,{"$f":"IFERROR(SUM(ListaDeCompras[Quantidade]*ListaDeCompras[Preço]), \"\")","v":{"v":0,"d":"0.00 €"}}]
[null,null,"Bananas","Produto",null,null,{"$f":"IFERROR(SUM(ListaDeCompras[Quantidade]*ListaDeCompras[Preço]), \"\")","v":{"v":0,"d":"0.00 €"}}]
[null,null,"Alface","Produto",null,null,{"$f":"IFERROR(SUM(ListaDeCompras[Quantidade]*ListaDeCompras[Preço]), \"\")","v":{"v":0,"d":"0.00 €"}}]
[null,null,"Tomates","Produto",null,null,{"$f":"IFERROR(SUM(ListaDeCompras[Quantidade]*ListaDeCompras[Preço]), \"\")","v":{"v":0,"d":"0.00 €"}},"  "]
[null,null,"Leite ","Laticínios",null,null,{"$f":"IFERROR(SUM(ListaDeCompras[Quantidade]*ListaDeCompras[Preço]), \"\")","v":{"v":0,"d":"0.00 €"}}]
[null,null,"Queijo","Laticínios",null,null,{"$f":"IFERROR(SUM(ListaDeCompras[Quantidade]*ListaDeCompras[Preço]), \"\")","v":{"v":0,"d":"0.00 €"}}]
[null,null,"Ovos","Laticínios",null,null,{"$f":"IFERROR(SUM(ListaDeCompras[Quantidade]*ListaDeCompras[Preço]), \"\")","v":{"v":0,"d":"0.00 €"}}]
[null,null,"Queijo fresco","Laticínios",null,null,{"$f":"IFERROR(SUM(ListaDeCompras[Quantidade]*ListaDeCompras[Preço]), \"\")","v":{"v":0,"d":"0.00 €"}}]
[null,null,"Carne de Vaca","Carne",null,null,{"$f":"IFERROR(SUM(ListaDeCompras[Quantidade]*ListaDeCompras[Preço]), \"\")","v":{"v":0,"d":"0.00 €"}}]
[null,null,"Carne de Aves","Carne",null,null,{"$f":"IFERROR(SUM(ListaDeCompras[Quantidade]*ListaDeCompras[Preço]), \"\")","v":{"v":0,"d":"0.00 €"}}]
[null,null,"Presunto","Carne",null,null,{"$f":"IFERROR(SUM(ListaDeCompras[Quantidade]*ListaDeCompras[Preço]), \"\")","v":{"v":0,"d":"0.00 €"}}]
[null,null,"Sumo","Bebidas",null,null,{"$f":"IFERROR(SUM(ListaDeCompras[Quantidade]*ListaDeCompras[Preço]), \"\")","v":{"v":0,"d":"0.00 €"}}]
[null,null,"Café","Bebidas",null,null,{"$f":"IFERROR(SUM(ListaDeCompras[Quantidade]*ListaDeCompras[Preço]), \"\")","v":{"v":0,"d":"0.00 €"}}]
[null,null,"Chá","Bebidas",null,null,{"$f":"IFERROR(SUM(ListaDeCompras[Quantidade]*ListaDeCompras[Preço]), \"\")","v":{"v":0,"d":"0.00 €"}}]
[null,null,"Água","Bebidas",null,null,{"$f":"IFERROR(SUM(ListaDeCompras[Quantidade]*ListaDeCompras[Preço]), \"\")","v":{"v":0,"d":"0.00 €"}}]
[null,null,"Noodles","Massa",null,null,{"$f":"IFERROR(SUM(ListaDeCompras[Quantidade]*ListaDeCompras[Preço]), \"\")","v":{"v":0,"d":"0.00 €"}}]
[null,null,"Arroz","Massa",null,null,{"$f":"IFERROR(SUM(ListaDeCompras[Quantidade]*ListaDeCompras[Preço]), \"\")","v":{"v":0,"d":"0.00 €"}}]
[null,null,"Enlatados","Sopa",null,null,{"$f":"IFERROR(SUM(ListaDeCompras[Quantidade]*ListaDeCompras[Preço]), \"\")","v":{"v":0,"d":"0.00 €"}}]
[null,null,"Mistura em pó","Sopa",null,null,{"$f":"IFERROR(SUM(ListaDeCompras[Quantidade]*ListaDeCompras[Preço]), \"\")","v":{"v":0,"d":"0.00 €"}}]
[null,null,"Pão","Padaria",null,null,{"$f":"IFERROR(SUM(ListaDeCompras[Quantidade]*ListaDeCompras[Preço]), \"\")","v":{"v":0,"d":"0.00 €"}}]
[null,null,"Batatas fritas","Aperitivos",null,null,{"$f":"IFERROR(SUM(ListaDeCompras[Quantidade]*ListaDeCompras[Preço]), \"\")","v":{"v":0,"d":"0.00 €"}}]
[null,null,"Pretzels","Aperitivos",null,null,{"$f":"IFERROR(SUM(ListaDeCompras[Quantidade]*ListaDeCompras[Preço]), \"\")","v":{"v":0,"d":"0.00 €"}}]
[null,null,"Gelado","Aperitivos",null,null,{"$f":"IFERROR(SUM(ListaDeCompras[Quantidade]*ListaDeCompras[Preço]), \"\")","v":{"v":0,"d":"0.00 €"}}]
[null,null,"Bolachas","Aperitivos",null,null,{"$f":"IFERROR(SUM(ListaDeCompras[Quantidade]*ListaDeCompras[Preço]), \"\")","v":{"v":0,"d":"0.00 €"}}]
[null,null,"Pratos descartáveis","Consumíveis",null,null,{"$f":"IFERROR(SUM(ListaDeCompras[Quantidade]*ListaDeCompras[Preço]), \"\")","v":{"v":0,"d":"0.00 €"}}]
[null,null,"Guardanapos","Consumíveis",null,null,{"$f":"IFERROR(SUM(ListaDeCompras[Quantidade]*ListaDeCompras[Preço]), \"\")","v":{"v":0,"d":"0.00 €"}}]
[{"$nulls":6},{"$f":"SUBTOTAL(109,ListaDeCompras[Preço Total Bruto])","v":{"v":0,"d":"0.00 €"}}]